bitfinex/quotes_ETHUSD_20240827
["timestamp","ask_amount","ask_price","bid_price","bid_amount"]
[1724754089169,3.76952,2652.9,2652.0,3.84605039]
[1724754089370,3.76952,2652.9,2652.2,3.77036]
[1724754089679,3.76952,2652.9,2652.2,3.77044]
[1724754090044,3.76952,2652.9,2652.0,3.84603039]
[1724754090377,7.53853,2653.1,2652.2,3.77034]
[1724754090678,3.76961,2652.8,2652.0,3.84606039]
[1724754090887,3.76961,2652.8,2652.1,3.77058]
[1724754091091,8.292393,2653.1,2652.2,3.77044]
[1724754091249,3.76934,2653.0,2652.3,3.77029]
[1724754091453,3.76934,2653.0,2652.0,7.54128]
[1724754091666,3.76963,2652.8,2652.1,0.07540346]
[1724754092091,3.76963,2652.8,2652.1,3.84599346]
[1724754092796,3.76963,2652.8,2652.1,0.07540346]
[1724754093500,3.76963,2652.8,2652.0,7.54127]
[1724754093787,3.76963,2652.8,2652.1,3.77055]
[1724754094005,3.76963,2652.8,2652.2,3.77044]
[1724754094158,3.76939,2653.0,2652.2,3.77044]
[1724754094159,7.53883,2653.0,2652.2,3.77044]
[1724754094353,3.76939,2653.0,2652.1,3.84597338]
[1724754094659,7.53879,2653.0,2652.2,3.77035]
[1724754095056,7.6807,2653.4,2652.2,0.07540336]
[1724754095261,3.76892,2653.3,2652.6,7.53951]
[1724754095500,3.76892,2653.3,2652.6,3.7698]
[1724754095698,3.76892,2653.3,2652.5,7.9252]
[1724754095699,3.76904,2653.2,2652.5,7.9252]
[1724754095901,3.76925,2653.1,2652.5,7.9252]
[1724754096403,3.76866,2653.5,2652.5,7.9252]
[1724754096896,3.76948,2652.9,2652.2,3.77037]
[1724754097096,3.76934,2653.0,2652.2,3.77035]
[1724754097299,3.76965,2652.8,2652.3,1.27490747]
[1724754097597,3.76965,2652.8,2652.1,11.79851]
[1724754097782,3.76974,2652.7,2652.1,8.028]
[1724754097967,3.76988,2652.6,2652.1,8.028]
[1724754098895,3.7675404,2652.7,2652.1,8.028]
[1724754100402,3.76931,2653.0,2652.3,3.77028]
[1724754100899,3.76968,2652.8,2652.1,11.79855]
[1724754101261,3.76977,2652.7,2652.1,11.79855]
[1724754102292,3.76938,2653.0,2652.1,11.79855]
[1724754102468,3.76954,2652.9,2652.2,3.77036]
[1724754102785,3.76938,2653.0,2652.3,3.84558253]
[1724754102957,7.53881,2653.0,2652.3,5.52797628]
[1724754103158,3.76938,2653.0,2652.3,5.52797628]
[1724754103661,3.76913,2653.2,2652.3,5.52797628]
[1724754103861,3.76924,2653.1,2652.4,0.07539201]
[1724754104062,11.80748,2653.6,2652.5,3.76994]
[1724754104063,3.76909,2653.2,2652.5,3.76994]
[1724754104311,7.9214,2654.1,2652.6,7.58809197]
[1724754104468,3.76835,2653.7,2652.8,3.76953]
[1724754104661,3.76835,2653.7,2652.8,4.9052922]
[1724754104862,4.16141066,2654.3,2652.9,11.28208]
[1724754104863,0.39392066,2654.3,2652.9,11.28208]
[1724754105059,7.9214,2654.4,2653.2,3.76889]
[1724754105266,3.7677,2654.2,2653.5,7.7326]
[1724754105499,3.76779,2654.1,2653.5,7.7326]
[1724754105703,3.7677,2654.2,2653.5,7.7326]
[1724754105877,3.7679,2654.0,2653.5,7.7326]
[1724754106902,7.53587,2654.0,2653.5,7.7326]
[1724754107103,3.7679,2654.0,2653.5,7.7326]
[1724754107513,3.76763,2654.2,2653.5,13.02813]
[1724754108102,3.76777,2654.1,2653.5,9.25962]
[1724754109619,3.76708,2654.6,2653.1,11.29978]
[1724754109916,3.76708,2654.6,2651.9,18.09214313]
[1724754109917,3.76863,2653.5,2652.8,7.5307]
[1724754110119,7.8758,2654.0,2652.8,7.5307]
[1724754110326,3.76925,2653.1,2652.3,3.77021]
[1724754110525,3.76925,2653.1,2652.4,3.77009]
[1724754110723,3.76911,2653.2,2652.5,3.76998]
[1724754111019,3.76918,2653.1,2652.4,0.377021]
[1724754111230,4.84381334,2653.9,2652.1,7.7851]
[1724754111381,3.77003,2652.5,2652.1,7.7851]
[1724754111585,3.77003,2652.5,2651.7,3.77105]
[1724754111586,3.77003,2652.5,2651.7,11.49455]
[1724754111786,3.76989,2652.6,2651.7,12.248797]
[1724754112024,3.77004,2652.5,2651.7,8.477747]
[1724754112606,3.76976,2652.7,2651.9,3.77086]
[1724754112909,3.76948,2652.9,2651.9,3.77086]
[1724754113088,3.76924,2653.1,2652.1,3.77056]
[1724754113283,3.76928,2653.1,2652.3,7.7443]
[1724754113552,3.76928,2653.1,2652.4,0.07539567]
[1724754114024,3.76894,2653.3,2652.4,0.07539567]
[1724754114236,3.769,2653.3,2652.4,1.23439624]
[1724754114384,3.76961,2652.8,2652.3,7.7443]
[1724754114589,3.76934,2653.0,2652.3,7.7443]
[1724754114828,3.76881,2653.4,2652.4,0.07540189]
[1724754115297,3.76881,2653.4,2652.3,12.28903]
[1724754115298,3.76915,2653.2,2652.3,12.28903]
[1724754115499,8.87621334,2653.7,2652.4,1.228903]
[1724754115500,3.76949,2652.9,2652.4,1.228903]
[1724754115705,3.7692,2653.1,2652.3,8.51873]
[1724754116005,3.76896,2653.3,2652.4,0.07539581]
[1724754116206,3.76889,2653.3,2652.4,5.08192139]
[1724754116393,3.76883,2653.4,2652.4,5.08192139]
[1724754116793,3.76883,2653.4,2652.6,3.76979]
[1724754116994,3.76903,2653.2,2652.7,0.376979]
[1724754117208,3.76934,2653.0,2652.4,1.23645558]
[1724754117416,3.76934,2653.0,2652.3,7.7443]
[1724754117624,3.76961,2652.8,2652.3,8.51873]
[1724754117927,3.76934,2653.0,2652.3,8.51873]
[1724754118139,3.76903,2653.2,2652.4,3.84549719]
[1724754118492,3.76918,2653.1,2652.3,8.51873]
[1724754118703,3.76918,2653.1,2652.4,0.07539554]
[1724754119015,3.76918,2653.1,2652.4,1.30430354]
[1724754119632,4.91284334,2653.2,2652.4,4.998948]
[1724754119938,3.76946,2652.9,2652.4,1.228908]
[1724754120100,1.14381334,2653.1,2652.3,7.7443]
[1724754120301,3.7696,2652.8,2652.3,7.7443]
[1724754120503,1.37257601,2653.0,2651.9,7.9317]
[1724754120838,3.76998,2652.6,2651.9,7.9317]
[1724754121011,3.76987,2652.7,2651.9,9.101963]
[1724754121437,3.77004,2652.5,2651.9,9.101963]
[1724754121724,3.76983,2652.7,2651.9,9.101963]
[1724754121948,8.18355221,2652.7,2651.9,9.101963]
[1724754122101,4.91364334,2652.7,2652.0,3.77069]
[1724754122298,3.76983,2652.7,2652.0,3.77069]
[1724754122503,4.91364334,2652.7,2652.0,3.77069]
[1724754122799,1.14381334,2652.8,2652.0,3.84609847]
[1724754123044,1.14381334,2652.8,2652.1,5.0578153]
[1724754123311,1.14381334,2652.4,2651.4,8.2704]
[1724754123608,3.77083,2652.0,2651.4,8.2704]
[1724754123807,5.40610767,2652.0,2651.4,0.005]
[1724754124004,3.77131,2651.6,2651.4,0.005]
[1724754124226,1.14381334,2651.9,2651.4,0.005]
[1724754124227,4.91494334,2651.8,2651.4,0.005]
[1724754124428,5.40608767,2652.0,2651.4,0.005]
[1724754124632,0.66208267,2651.9,2651.4,0.005]
[1724754125040,1.80589601,2651.9,2651.4,0.005]
[1724754125443,0.66208267,2651.9,2651.4,0.005]
[1724754125651,3.77104,2651.8,2651.4,0.005]
[1724754126305,3.77081,2652.0,2651.4,0.005]
[1724754126545,3.0,2652.4,2651.4,0.005]
[1724754126546,4.91402334,2652.4,2651.5,11.97294]
[1724754126756,1.14381334,2652.4,2651.5,8.2016]
[1724754126921,3.77082,2652.0,2651.5,8.2016]
[1724754127121,3.77062,2652.1,2651.5,8.2016]
[1724754127307,3.77076,2652.0,2651.5,8.2016]
[1724754128020,3.77093,2651.9,2651.4,0.005]
[1724754128347,1.14381334,2652.3,2651.4,0.005]
[1724754128348,7.54109,2652.2,2651.4,0.005]
[1724754128652,3.77086,2652.0,2651.4,0.005]
[1724754128854,7.54173,2652.0,2651.4,0.005]
[1724754129421,3.77107,2651.8,2651.4,0.005]
[1724754129924,3.77138,2651.6,2651.4,0.005]
[1724754130258,3.77107,2651.8,2651.4,0.005]
[1724754130855,3.77081,2652.0,2651.4,0.005]
[1724754132052,3.77089,2651.9,2651.4,0.005]
[1724754132408,3.77081,2652.0,2651.4,0.005]
[1724754132567,7.5411,2652.2,2651.4,3.77651]
[1724754132761,3.77053,2652.2,2651.5,8.1585]
[1724754132926,1.14381334,2652.4,2651.5,8.1585]
[1724754132927,3.77018,2652.4,2651.6,0.07541839]
[1724754133131,3.76998,2652.6,2651.8,3.77102]
[1724754133517,3.76998,2652.6,2651.8,3.84635395]
[1724754133718,3.76998,2652.6,2651.9,7.798]
[1724754134158,3.76966,2652.8,2652.0,0.07540982]
[1724754134337,3.76947,2652.9,2652.1,3.77059]
[1724754134659,3.76947,2652.9,2652.1,5.01039011]
[1724754134822,3.76947,2652.9,2652.1,8.78082011]
[1724754135019,3.76947,2652.9,2652.1,5.01031011]
[1724754135223,3.76947,2652.9,2652.2,3.7704]
[1724754135419,3.76947,2652.9,2652.3,0.07539847]
[1724754135646,3.76961,2652.8,2652.4,7.798]
[1724754135966,3.77033,2652.3,2652.0,7.798]
[1724754136187,3.77048,2652.2,2652.0,7.798]
[1724754136361,3.77048,2652.2,2651.3,3.77168]
[1724754136362,3.77048,2652.2,2651.6,7.798]
[1724754136832,7.54051,2652.4,2651.6,7.798]
[1724754137037,3.77042,2652.3,2651.6,8.955437]
[1724754137357,3.77042,2652.3,2651.6,7.798]
[1724754137536,3.77075,2652.0,2651.6,7.798]
[1724754138045,3.77075,2652.0,2651.2,7.648]
[1724754138046,3.77109,2651.8,2651.2,7.648]
[1724754138750,7.5422,2651.8,2651.2,7.648]
[1724754138964,3.77109,2651.8,2651.2,7.648]
[1724754139167,3.77119,2651.7,2651.2,7.648]
[1724754139467,3.77121,2651.7,2651.2,7.648]
[1724754139896,3.77143,2651.6,2650.8,7.648]
[1724754140074,3.77145,2651.5,2650.9,3.77223]
[1724754140674,4.147825,2652.0,2650.9,7.54446]
[1724754140675,3.77127,2651.7,2650.9,7.54446]
[1724754140876,3.77127,2651.7,2651.0,3.77208]
[1724754141085,3.77134,2651.6,2650.9,3.77223]
[1724754141244,3.77127,2651.7,2650.9,3.77218]
[1724754141744,3.77096,2651.9,2651.1,3.77201]
[1724754141965,3.77096,2651.9,2651.2,0.07542969]
[1724754142174,3.7711,2651.8,2651.2,0.07542969]
[1724754142388,3.77138,2651.6,2650.9,0.07543547]
[1724754142578,3.77138,2651.6,2650.9,3.84765547]
[1724754143185,3.77138,2651.6,2650.8,7.648]
[1724754143186,3.77145,2651.5,2650.8,7.648]
[1724754143354,3.77132,2651.6,2650.9,0.07543539]
[1724754143560,7.54271,2651.6,2650.9,3.84765539]
[1724754143777,7.54271,2651.6,2650.9,3.77222]
[1724754143778,3.77132,2651.6,2650.9,3.77222]
[1724754144091,3.7711,2651.8,2650.9,3.77222]
[1724754144092,7.54225,2651.8,2651.0,3.77211]
[1724754144304,3.7711,2651.8,2651.1,3.77192]
[1724754144471,3.77084,2652.0,2651.2,3.84728963]
[1724754144671,3.77084,2652.0,2651.3,3.77172]
[1724754144906,3.77027,2652.4,2651.5,8.2216]
[1724754145106,3.76998,2652.6,2651.6,3.84662998]
[1724754145315,3.77058,2652.2,2651.5,8.2216]
[1724754145679,3.77074,2652.0,2651.5,8.2216]
[1724754146009,3.77054,2652.2,2651.5,8.2216]
[1724754146197,3.77053,2652.2,2651.5,8.2216]
[1724754146377,3.77062,2652.1,2651.5,9.798572]
[1724754146577,3.77053,2652.2,2651.5,9.798572]
[1724754146763,3.77053,2652.2,2651.5,13.569992]
[1724754147511,7.54052,2652.4,2651.6,3.84670839]
[1724754147698,3.77039,2652.3,2651.6,5.1287892]
[1724754147872,3.77039,2652.3,2651.6,1.3574992]
[1724754148071,3.77039,2652.3,2651.7,1.71218792]
[1724754148570,7.54052,2652.4,2651.7,1.71218792]
[1724754148770,3.77024,2652.4,2651.7,1.71218792]
[1724754149392,3.77039,2652.3,2651.7,1.71218792]
[1724754150199,3.77024,2652.4,2651.7,1.71218792]
[1724754150403,7.53997,2652.6,2651.8,0.63129511]
[1724754150607,3.77005,2652.5,2651.8,8.17331511]
[1724754150914,3.77005,2652.5,2651.8,3.84642299]
[1724754151108,3.77005,2652.5,2651.9,7.5736]
[1724754151334,3.76955,2652.9,2652.1,3.7705]
[1724754151626,3.76925,2653.1,2652.3,7.5736]
[1724754151932,3.76925,2653.1,2652.4,0.07539503]
[1724754152232,3.76947,2652.9,2652.4,0.07539503]
[1724754153827,4.91298334,2653.1,2652.3,7.5736]
[1724754153984,1.91883686,2653.4,2652.3,7.5736]
[1724754153985,3.7694,2653.0,2652.3,11.34384]
[1724754154185,7.53883,2653.0,2652.4,0.07539225]
[1724754154498,3.76954,2652.9,2652.4,0.07539326]
[1724754154700,3.7694,2653.0,2652.4,0.07539529]
[1724754154898,3.76939,2653.0,2652.4,1.33077402]
[1724754155078,3.76939,2653.0,2652.4,0.07539529]
[1724754155079,3.76949,2652.9,2652.4,0.07539529]
[1724754155480,7.53882,2653.0,2652.4,0.07539529]
[1724754155711,3.76951,2652.9,2652.4,0.07539529]
[1724754155913,3.76951,2652.9,2652.3,7.5736]
[1724754156125,3.76939,2653.0,2652.4,0.07539471]
[1724754157441,4.91270334,2653.3,2652.6,3.76978]
[1724754157728,4.91270334,2653.3,2652.7,0.45236469]
[1724754157888,4.91285334,2653.2,2652.5,3.76991]
[1724754158087,4.91285334,2653.2,2652.5,3.84529678]
[1724754158739,3.76904,2653.2,2652.5,3.84529678]
[1724754158910,4.91270334,2653.3,2652.6,8.3323]
[1724754159115,4.91284334,2653.2,2652.7,0.07538676]
[1724754159441,3.76919,2653.1,2652.7,0.07538676]
[1724754159648,8.68170334,2653.3,2652.7,0.07538676]
[1724754159817,4.91270334,2653.3,2652.7,0.07538676]
[1724754160017,1.14381334,2653.3,2652.7,3.84509676]
[1724754160330,3.76891,2653.3,2652.8,0.07538325]
[1724754160509,1.14381334,2653.4,2652.8,0.07538325]
[1724754160709,3.769,2653.3,2652.8,0.07538325]
[1724754161538,1.52493873,2653.6,2652.8,4.75155935]
[1724754161539,1.14381334,2653.6,2652.8,4.75155935]
[1724754161739,3.76861,2653.5,2652.9,8.1609]
[1724754161900,3.76861,2653.5,2653.0,1.27595686]
[1724754162495,1.14381334,2653.6,2653.0,1.27595686]
[1724754162948,3.76862,2653.5,2653.0,1.27595686]
[1724754163830,3.76891,2653.3,2653.0,1.27595686]
[1724754164040,4.91243334,2653.5,2653.0,0.07537653]
[1724754164341,7.53732,2653.5,2653.0,0.07537653]
[1724754164906,7.53732,2653.5,2652.9,8.1609]
[1724754164907,3.76905,2653.2,2652.9,8.1609]
[1724754165859,3.76945,2653.0,2652.6,7.8753]
[1724754166033,3.76946,2652.9,2652.6,7.8753]
[1724754166245,3.7693,2653.1,2652.6,7.8753]
[1724754166622,3.76918,2653.1,2652.6,7.8753]
[1724754166919,3.76957,2652.9,2652.6,7.8753]
[1724754167149,3.76932,2653.0,2652.6,7.8753]
[1724754167762,0.753844,2653.0,2652.3,7.9817]
[1724754167923,0.753844,2653.0,2651.4,0.005]
[1724754167924,3.76997,2652.6,2651.9,7.9817]
[1724754168119,3.76976,2652.7,2651.9,13.304945]
[1724754168357,3.76962,2652.8,2652.1,3.7705]
[1724754168661,3.76996,2652.6,2652.1,1.18276044]
[1724754168976,3.7702,2652.4,2651.9,7.9817]
[1724754169265,3.77044,2652.3,2651.9,7.9817]
[1724754169434,3.76993,2652.6,2651.9,8.77987]
[1724754169762,3.77026,2652.4,2651.9,7.9817]
[1724754170059,3.77007,2652.5,2651.9,7.9817]
[1724754170566,3.76997,2652.6,2651.9,7.9817]
[1724754170715,4.91349334,2652.8,2652.0,1.25067602]
[1724754170915,4.91349334,2652.8,2652.0,5.02138602]
[1724754171162,4.91349334,2652.8,2652.0,1.175271]
[1724754171756,3.7699,2652.6,2652.0,1.175271]
[1724754172255,3.76976,2652.7,2652.1,0.07540339]
[1724754172558,3.7699,2652.6,2652.0,1.175271]
[1724754172729,7.53986,2652.6,2652.0,1.175271]
[1724754172937,3.77003,2652.5,2652.0,1.175271]
[1724754173349,3.77003,2652.5,2651.9,7.9817]
[1724754173350,3.77026,2652.4,2651.9,7.9817]
[1724754173536,1.14381334,2652.6,2651.9,7.9817]
[1724754173773,3.77041,2652.3,2651.9,7.9817]
[1724754173947,3.7702,2652.4,2651.9,7.9817]
[1724754174457,3.77008,2652.5,2651.9,7.9817]
[1724754174660,3.77024,2652.4,2651.9,7.9817]
[1724754175220,7.5405,2652.4,2651.9,7.9817]
[1724754175429,3.77084,2652.0,2651.7,7.9176]
[1724754176620,3.77054,2652.2,2651.7,7.9176]
[1724754176824,3.7706,2652.1,2651.7,7.9176]
[1724754177061,3.77096,2651.9,2651.4,0.005]
[1724754177387,3.7709,2651.9,2651.4,0.005]
[1724754177605,3.77082,2652.0,2651.4,0.08042218]
[1724754177808,3.77082,2652.0,2651.4,1.2417894]
[1724754178014,3.77075,2652.0,2651.4,1.16636722]
[1724754178223,4.91434334,2652.2,2651.4,0.005]
[1724754178224,3.77113,2651.8,2651.4,0.005]
[1724754178533,3.77118,2651.7,2651.4,0.005]
[1724754178980,3.77113,2651.8,2651.4,0.005]
[1724754178981,3.77134,2651.6,2651.4,0.005]
[1724754180016,8.03374433,2651.8,2651.4,0.005]
[1724754180179,7.54225,2651.8,2651.4,0.005]
[1724754180382,3.77093,2651.9,2651.4,0.005]
[1724754181132,3.77118,2651.7,2651.4,0.005]
[1724754181418,3.77138,2651.6,2651.4,0.005]
[1724754183069,7.54218,2651.8,2651.4,0.005]
[1724754183306,3.77104,2651.8,2651.4,0.005]
[1724754183468,3.77121,2651.7,2651.4,0.005]
[1724754183666,4.91465334,2652.0,2651.4,0.005]
[1724754184094,3.77118,2651.7,2651.4,0.005]
[1724754184409,3.77104,2651.8,2651.4,0.005]
[1724754184607,1.14381334,2652.0,2651.4,0.005]
[1724754184813,1.92106587,2652.3,2651.4,0.005]
[1724754184814,1.14381334,2652.3,2651.9,3.77087]
[1724754184995,4.91364334,2652.7,2652.1,8.3198]
[1724754185169,3.76983,2652.7,2652.2,0.07540121]
[1724754185575,3.76947,2652.9,2652.2,5.06241733]
[1724754185576,1.14381334,2652.9,2652.2,5.06241733]
[1724754185920,7.6851,2653.6,2652.2,5.06241733]
[1724754185921,10.20671207,2653.3,2652.5,11.84912]
[1724754186124,4.91278334,2653.3,2652.6,1.561921]
[1724754186410,3.76897,2653.3,2652.7,0.07539034]
[1724754186612,3.7697,2652.8,2652.5,8.0791]
[1724754186817,4.91271334,2653.3,2652.5,8.0791]
[1724754186818,3.76949,2652.9,2652.5,8.0791]
[1724754187023,3.7696,2652.8,2652.5,8.0791]
[1724754187317,3.76943,2653.0,2652.5,8.0791]
[1724754187820,9.17335167,2653.2,2652.5,8.0791]
[1724754187986,4.91290334,2653.2,2652.6,0.07539438]
[1724754188187,3.76909,2653.2,2652.6,0.07539438]
[1724754188389,4.91290334,2653.2,2652.6,0.07539438]
[1724754188689,3.76909,2653.2,2652.5,8.0791]
[1724754188905,3.76909,2653.2,2652.6,0.07538782]
[1724754189218,1.14381334,2653.4,2652.5,9.264031]
[1724754189384,1.14381334,2653.4,2652.5,8.0791]
[1724754189385,3.76932,2653.0,2652.5,8.0791]
[1724754189918,4.91286334,2653.2,2652.5,11.84908]
[1724754190220,3.76912,2653.2,2652.6,1.184908]
[1724754190385,3.76941,2653.0,2652.5,8.0791]
[1724754190913,3.7694,2653.0,2652.5,8.0791]
[1724754191805,3.76947,2652.9,2652.5,8.0791]
[1724754191987,1.14381334,2653.0,2652.5,8.0791]
[1724754192189,4.91307334,2653.1,2652.5,8.0791]
[1724754192777,3.76926,2653.1,2652.5,11.84912]
[1724754192986,4.91307334,2653.1,2652.5,8.0791]
[1724754193396,5.29390873,2653.3,2652.6,3.84526228]
[1724754193397,1.14381334,2653.2,2652.6,3.84526228]
[1724754193793,1.14381334,2653.4,2652.9,7.5575]
[1724754194083,1.14381334,2653.4,2653.0,1.132708]
[1724754194404,4.91249334,2653.5,2652.9,7.5575]
[1724754194815,3.76882,2653.4,2652.9,7.5575]
[1724754194977,3.76919,2653.1,2652.5,7.8637]
[1724754195325,8.68174334,2653.3,2652.5,11.63364]
[1724754195535,3.76904,2653.2,2652.5,11.63364]
[1724754195677,1.14381334,2653.2,2652.5,11.63372]
[1724754195883,4.91277334,2653.3,2652.5,11.63372]
[1724754196115,4.91277334,2653.3,2652.5,7.8637]
[1724754196342,1.78758455,2653.2,2652.5,7.8637]
[1724754196533,1.14381334,2653.1,2652.5,7.8637]
[1724754196699,4.91282334,2653.3,2652.6,3.76981]
[1724754196899,4.91282334,2653.3,2652.5,7.8637]
[1724754197086,4.91282334,2653.3,2652.5,12.41999]
[1724754197285,3.76901,2653.3,2652.5,12.41999]
[1724754197524,4.91282334,2653.3,2652.6,7.53964]
[1724754197737,3.76901,2653.3,2652.7,3.84511298]
[1724754198027,1.14381334,2653.4,2652.8,0.07538488]
[1724754198510,4.91251334,2653.5,2652.8,3.84493488]
[1724754198830,4.91251334,2653.5,2652.8,0.9994971]
[1724754199133,3.76877,2653.4,2652.8,0.9994971]
[1724754199310,3.76877,2653.4,2652.8,0.07538488]
[1724754199635,4.91258334,2653.4,2652.8,0.07538488]
[1724754199985,3.76893,2653.3,2652.6,3.76984]
[1724754200325,3.76893,2653.3,2652.5,7.8637]
[1724754200326,3.76946,2652.9,2652.5,7.8637]
[1724754200687,1.14381334,2653.2,2652.0,3.77063]
[1724754200688,1.14381334,2653.1,2652.1,8.1006]
[1724754200889,3.76988,2652.6,2652.1,8.1006]
[1724754201629,1.14381334,2652.9,2652.3,3.7703]
[1724754201831,3.76956,2652.9,2652.2,0.8777663]
[1724754201986,3.76964,2652.8,2652.1,11.87108]
[1724754202182,3.76975,2652.7,2652.1,8.1006]
[1724754202388,4.91337334,2652.9,2652.1,11.87118]
[1724754202595,3.76974,2652.7,2652.1,11.87118]
[1724754202886,3.76956,2652.9,2652.2,3.84573024]
[1724754202887,4.91337334,2652.9,2652.2,3.84573024]
[1724754203423,4.91337334,2652.9,2652.2,3.77033]
[1724754203948,4.91337334,2652.9,2652.1,8.1006]
[1724754203949,3.76976,2652.7,2652.1,8.1006]
[1724754204104,4.91333334,2652.9,2652.2,0.07540023]
[1724754204306,4.91333334,2652.9,2652.2,3.84584023]
[1724754204505,3.76952,2652.9,2652.2,3.84584023]
[1724754204831,1.14381334,2653.0,2652.5,3.77]
[1724754205754,1.14381334,2653.0,2652.6,3.76983]
[1724754205907,1.14381334,2653.1,2652.5,7.53992]
[1724754206102,1.14381334,2653.1,2652.5,3.76992]
[1724754206312,1.15397044,2653.3,2653.2,3.76903]
[1724754206620,1.15397044,2653.8,2653.2,3.76893]
[1724754206844,1.65397626,2653.8,2653.2,3.76893]
[1724754207050,1.65397626,2653.8,2653.0,11.30774]
[1724754207051,0.50000582,2653.8,2653.0,15.07693]
[1724754207198,0.50000582,2653.8,2653.1,3.76917]
[1724754207403,0.50000582,2653.8,2653.1,7.53825]
[1724754207919,0.50000582,2653.8,2653.1,7.53816]
[1724754208144,0.50000582,2653.8,2653.1,7.53817]
[1724754208312,0.50000582,2653.8,2653.2,3.76897]
[1724754208523,1.52493873,2654.0,2653.4,3.76866]
[1724754209824,1.52493873,2654.1,2653.4,3.76866]
[1724754210300,5.29269873,2654.1,2653.4,3.76866]
[1724754210748,1.52493873,2654.1,2653.5,3.76859]
[1724754210903,13.23875873,2654.2,2653.5,3.76859]
[1724754211247,17.00645873,2654.2,2653.5,3.76859]
[1724754212048,1.52493873,2654.0,2653.1,3.76909]
[1724754212234,1.52493873,2654.1,2653.1,3.76909]
[1724754212421,3.76811,2653.9,2653.1,7.53818]
[1724754212617,3.76811,2653.9,2653.1,3.76909]
[1724754212819,3.76811,2653.9,2653.1,7.53817]
[1724754213006,3.76811,2653.9,2653.1,3.76908]
[1724754213340,3.768,2654.0,2653.2,3.76899]
[1724754213552,7.53598,2654.0,2653.2,3.76899]
[1724754213720,3.76807,2653.9,2653.2,3.76899]
[1724754213916,3.76807,2653.9,2653.1,3.76908]
[1724754214127,1.52493873,2654.0,2653.0,7.5385]
[1724754214463,3.7687,2653.5,2652.7,7.53926]
[1724754214749,3.7684,2653.7,2653.0,3.76929]
[1724754214919,1.52493873,2653.8,2653.1,3.76915]
[1724754215248,3.0,2653.8,2653.3,3.76888]
[1724754215450,3.0,2653.8,2653.2,11.6611]
[1724754216450,3.7681,2653.9,2653.2,11.6611]
[1724754216451,8.29270873,2654.1,2653.2,14.73005532]
[1724754216618,3.0,2654.0,2653.2,14.73005532]
[1724754217023,8.29270873,2654.1,2653.4,3.76874]
[1724754217408,6.76777,2654.1,2653.2,14.72999532]
[1724754217825,6.76777,2654.1,2653.4,3.76867]
[1724754218021,9.47113873,2654.2,2653.5,3.76857]
[1724754218022,11.71382,2654.2,2653.5,3.76857]
[1724754218221,5.29246873,2654.3,2653.2,14.72998532]
[1724754218222,3.76777,2654.1,2653.3,5.24177953]
[1724754218433,3.76777,2654.1,2653.4,3.76871]
[1724754218996,1.52493873,2654.3,2653.5,3.14432605]
[1724754219170,5.29217873,2654.5,2653.6,3.76837]
[1724754219337,3.7675,2654.3,2653.7,3.7683]
[1724754219538,3.7675,2654.3,2653.6,3.76837]
[1724754219769,8.25587263,2654.5,2653.7,3.76829]
[1724754220062,1.92094758,2654.7,2653.4,1.62030248]
[1724754220063,5.29192873,2654.7,2653.9,7.53596]
[1724754220222,3.76706,2654.6,2653.9,5.63679774]
[1724754220422,3.76706,2654.6,2653.9,3.76795]
[1724754221282,5.29192873,2654.7,2653.9,3.76795]
[1724754221425,3.76699,2654.7,2653.9,3.76795]
[1724754221619,3.76699,2654.7,2653.8,11.07715532]
[1724754221620,7.53447,2654.5,2653.8,11.07715532]
[1724754221816,3.7672,2654.5,2653.8,11.07715532]
[1724754222058,3.76757,2654.3,2653.8,11.07715532]
[1724754223010,3.76733,2654.4,2653.8,11.07715532]
[1724754223393,3.76733,2654.4,2653.8,3.06895532]
[1724754224108,3.76713,2654.6,2653.9,3.76801]
[1724754224485,3.76713,2654.6,2653.9,3.76795]
[1724754224682,1.52493873,2654.7,2654.0,11.86826]
[1724754224992,3.0,2654.7,2654.1,3.76766]
[1724754225177,3.0,2654.7,2654.2,3.76752]
[1724754225379,6.7668,2654.8,2654.1,3.06895532]
[1724754225591,8.29173873,2654.8,2654.1,6.83668532]
[1724754225791,3.7668,2654.8,2654.1,10.60435532]
[1724754225979,3.7668,2654.8,2654.2,5.80623995]
[1724754226366,3.76708,2654.6,2654.1,3.06895532]
[1724754226585,3.76741,2654.4,2653.7,15.12284532]
[1724754226785,3.76741,2654.4,2653.8,3.76815]
[1724754227021,7.5343,2654.6,2653.8,3.76815]
[1724754227207,3.76712,2654.6,2653.9,6.83691532]
[1724754228230,3.76707,2654.6,2653.9,6.83691532]
[1724754228429,5.29176873,2654.8,2653.9,6.83689532]
[1724754228638,7.53369,2654.8,2654.0,0.87259899]
[1724754228931,3.76694,2654.7,2654.1,3.76768]
[1724754229903,9.05828873,2654.9,2654.1,3.76765]
[1724754230109,1.52493873,2654.8,2654.1,3.76765]
[1724754230292,5.29172873,2654.8,2654.1,3.76765]
[1724754230489,1.52493873,2654.8,2654.4,3.7673]
[1724754230722,1.52493873,2654.9,2654.4,3.7673]
[1724754231089,2.20158073,2655.0,2654.4,3.76723]
[1724754231288,1.52493873,2655.0,2654.4,3.76723]
[1724754232039,9.05808873,2655.0,2654.3,6.83640532]
[1724754232202,1.52493873,2655.0,2654.4,3.76732]
[1724754232532,8.29140873,2655.1,2654.4,3.76724]
[1724754232889,6.76647,2655.1,2654.4,3.76724]
[1724754233119,6.76647,2655.1,2654.4,7.53447]
[1724754233297,8.29140873,2655.1,2654.4,5.64545494]
[1724754233991,3.76649,2655.0,2654.4,5.64545494]
[1724754235001,3.76696,2654.7,2654.2,8.1032]
[1724754236126,3.76691,2654.7,2654.2,8.1032]
[1724754236628,3.7667,2654.9,2654.2,8.1032]
[1724754236841,3.7669,2654.7,2654.2,8.1032]
[1724754237635,3.76676,2654.8,2654.2,8.1032]